[Event "Titled Tuesday Blitz June 27 Early 2023"]
[White "Kantor, Gergely"]
[Black "Csonka, Balazs"]
[WhiteFideId "751499"]
[BlackFideId "742910"]
[WhiteElo "2868"]
[BlackElo "2741"]
[Result "1-0"]
[Round "10"]
[TimeControl "180+2"]
[Date "2023.06.27"]
[WhiteClock "0:00:03"]
[BlackClock "0:00:02"]
[Board "17"]

1. e4 {[%clk 0:03:00]}  e5 {[%clk 0:02:56]} 2. Nf3 {[%clk 0:03:00]}  Nc6 {[%clk 0:02:57]} 3. Bc4 {[%clk 0:03:01]}  Nf6 {[%clk 0:02:53]} 4. d3 {[%clk 0:03:01]}  Bc5 {[%clk 0:02:52]} 5. O-O {[%clk 0:03:01]}  O-O {[%clk 0:02:52]} 6. Nbd2 {[%clk 0:03:01]}  Re8 {[%clk 0:02:44]} 7. c3 {[%clk 0:02:56]}  h6 {[%clk 0:02:30]} 8. b4 {[%clk 0:02:54]}  Bb6 {[%clk 0:02:08]} 9. a4 {[%clk 0:02:53]}  a6 {[%clk 0:01:54]} 10. a5 {[%clk 0:02:53]}  Ba7 {[%clk 0:01:53]} 11. Qb3 {[%clk 0:02:53]}  Qe7 {[%clk 0:01:53]} 12. Nh4 {[%clk 0:02:51]}  d6 {[%clk 0:01:31]} 13. Ng6 {[%clk 0:02:51]}  Qd7 {[%clk 0:01:30]} 14. h3 {[%clk 0:01:29]}  Nd8 {[%clk 0:01:19]} 15. Nh4 {[%clk 0:01:25]}  c6 {[%clk 0:01:17]} 16. Qc2 {[%clk 0:01:25]}  d5 {[%clk 0:01:11]} 17. Bb3 {[%clk 0:01:25]}  Qc7 {[%clk 0:01:08]} 18. Ndf3 {[%clk 0:01:24]}  Be6 {[%clk 0:01:06]} 19. Re1 {[%clk 0:01:18]}  dxe4 {[%clk 0:01:03]} 20. dxe4 {[%clk 0:01:18]}  Bxb3 {[%clk 0:01:02]} 21. Qxb3 {[%clk 0:01:18]}  Ne6 {[%clk 0:01:03]} 22. Nf5 {[%clk 0:01:18]}  Rad8 {[%clk 0:01:03]} 23. Qc4 {[%clk 0:01:15]}  Nf8 {[%clk 0:00:48]} 24. g3 {[%clk 0:01:09]}  Ng6 {[%clk 0:00:42]} 25. Kg2 {[%clk 0:01:08]}  Qd7 {[%clk 0:00:39]} 26. Be3 {[%clk 0:00:59]}  Bxe3 {[%clk 0:00:38]} 27. Rxe3 {[%clk 0:00:59]}  Qe6 {[%clk 0:00:36]} 28. Qc5 {[%clk 0:00:38]}  Nxe4 {[%clk 0:00:36]} 29. Nxh6+ {[%clk 0:00:35]}  gxh6 {[%clk 0:00:35]} 30. Rxe4 {[%clk 0:00:36]}  f5 {[%clk 0:00:19]} 31. Re3 {[%clk 0:00:28]}  Qd5 {[%clk 0:00:19]} 32. Qxd5+ {[%clk 0:00:16]}  cxd5 {[%clk 0:00:19]} 33. Rae1 {[%clk 0:00:16]}  e4 {[%clk 0:00:19]} 34. Nd4 {[%clk 0:00:15]}  f4 {[%clk 0:00:19]} 35. gxf4 {[%clk 0:00:15]}  Nxf4+ {[%clk 0:00:20]} 36. Kh2 {[%clk 0:00:15]}  Ne6 {[%clk 0:00:11]} 37. Nf5 {[%clk 0:00:15]}  Kh7 {[%clk 0:00:11]} 38. f3 {[%clk 0:00:15]}  Rf8 {[%clk 0:00:12]} 39. fxe4 {[%clk 0:00:15]}  dxe4 {[%clk 0:00:13]} 40. Rxe4 {[%clk 0:00:08]}  Ng5 {[%clk 0:00:13]} 41. Re7+ {[%clk 0:00:07]}  Kg6 {[%clk 0:00:11]} 42. Nd4 {[%clk 0:00:07]}  Nf3+ {[%clk 0:00:03]} 43. Nxf3 {[%clk 0:00:06]}  Rxf3 {[%clk 0:00:03]} 44. R1e6+ {[%clk 0:00:04]}  Kh5 {[%clk 0:00:03]} 45. Re5+ {[%clk 0:00:04]}  Kg6 {[%clk 0:00:03]} 46. R7e6+ {[%clk 0:00:04]}  Kg7 {[%clk 0:00:03]} 47. Re2 {[%clk 0:00:05]}  Rdd3 {[%clk 0:00:02]} 48. Re7+ {[%clk 0:00:04]}  Kg6 {[%clk 0:00:02]} 49. Rxb7 {[%clk 0:00:03]}  Rxh3+ {[%clk 0:00:02]} 50. Kg2 {[%clk 0:00:03]}  Rhg3+ {[%clk 0:00:02]} 51. Kf2 {[%clk 0:00:04]}  Rdf3+ {[%clk 0:00:02]} 52. Ke1 {[%clk 0:00:04]}  Rxc3 {[%clk 0:00:03]} 53. Rb6+ {[%clk 0:00:03]}  Kg5 {[%clk 0:00:03]} 54. Rxa6 {[%clk 0:00:04]}  h5 {[%clk 0:00:03]} 55. Ra8 {[%clk 0:00:03]}  h4 {[%clk 0:00:02]} 56. Rg8+ {[%clk 0:00:03]}  Kf4 {[%clk 0:00:02]} 57. Rf2+ {[%clk 0:00:03]}  Ke3 {[%clk 0:00:02]} 58. Re8+ {[%clk 0:00:04]}  Kd4 {[%clk 0:00:02]} 59. Rd2+ {[%clk 0:00:04]}  Kc4 {[%clk 0:00:02]} 60. Re4+ {[%clk 0:00:04]}  Kb5 {[%clk 0:00:03]} 61. Rxh4 {[%clk 0:00:05]}  Rb3 {[%clk 0:00:02]} 62. Rd5+ {[%clk 0:00:04]}  Ka4 {[%clk 0:00:02]} 63. Rd2 {[%clk 0:00:03]}  Rb1+ {[%clk 0:00:02]} 64. Kf2 {[%clk 0:00:03]}  Rxb4 {[%clk 0:00:03]} 65. Rxb4+ {[%clk 0:00:02]}  Kxb4 {[%clk 0:00:02]} 66. Kxg3 {[%clk 0:00:03]} 1-0


[Site "https://www.chess.com"]

[Event "Titled Tuesday Blitz June 27 Early 2023"]
[White "Erdogmus, Yagiz Kaan"]
[Black "Kourkoulos-Arditis, Stamatis"]
[WhiteFideId "44599790"]
[BlackFideId "4221990"]
[WhiteElo "2866"]
[BlackElo "2717"]
[Result "1-0"]
[Round "10"]
[TimeControl "180+2"]
[Date "2023.06.27"]
[WhiteClock "0:00:11"]
[BlackClock "0:00:00"]
[Board "18"]

1. e4 {[%clk 0:02:58]}  c5 {[%clk 0:02:58]} 2. Nf3 {[%clk 0:02:57]}  e6 {[%clk 0:02:59]} 3. d4 {[%clk 0:02:56]}  cxd4 {[%clk 0:03:00]} 4. Nxd4 {[%clk 0:02:56]}  Nf6 {[%clk 0:02:59]} 5. Nc3 {[%clk 0:02:57]}  Nc6 {[%clk 0:03:00]} 6. Nxc6 {[%clk 0:02:57]}  bxc6 {[%clk 0:03:01]} 7. e5 {[%clk 0:02:57]}  Nd5 {[%clk 0:03:01]} 8. Ne4 {[%clk 0:02:57]}  Qc7 {[%clk 0:03:01]} 9. f4 {[%clk 0:02:57]}  Qb6 {[%clk 0:03:01]} 10. c4 {[%clk 0:02:57]}  Bb4+ {[%clk 0:03:01]} 11. Ke2 {[%clk 0:02:57]}  f5 {[%clk 0:03:01]} 12. Nf2 {[%clk 0:02:55]}  Ne7 {[%clk 0:02:58]} 13. Be3 {[%clk 0:02:44]}  Bc5 {[%clk 0:02:58]} 14. Bxc5 {[%clk 0:02:43]}  Qxc5 {[%clk 0:02:55]} 15. b3 {[%clk 0:02:26]}  Qb6 {[%clk 0:02:48]} 16. Qd6 {[%clk 0:02:22]}  c5 {[%clk 0:02:48]} 17. Nd3 {[%clk 0:02:22]}  Ng6 {[%clk 0:01:47]} 18. Ke3 {[%clk 0:02:17]}  Bb7 {[%clk 0:00:53]} 19. Qxc5 {[%clk 0:02:07]}  Qd8 {[%clk 0:00:53]} 20. Rd1 {[%clk 0:01:50]}  a5 {[%clk 0:00:49]} 21. Qd6 {[%clk 0:01:41]}  Ra6 {[%clk 0:00:47]} 22. Qd4 {[%clk 0:01:39]}  Bc6 {[%clk 0:00:40]} 23. Nc5 {[%clk 0:01:37]}  Ra8 {[%clk 0:00:40]} 24. Qd6 {[%clk 0:00:43]}  Qb6 {[%clk 0:00:23]} 25. Rd4 {[%clk 0:00:40]}  Qb4 {[%clk 0:00:10]} 26. Bd3 {[%clk 0:00:31]}  Nh4 {[%clk 0:00:07]} 27. Rg1 {[%clk 0:00:22]}  Kf7 {[%clk 0:00:02]} 28. Nxe6 {[%clk 0:00:20]}  Qxd6 {[%clk 0:00:02]} 29. Rxd6 {[%clk 0:00:19]}  Nxg2+ {[%clk 0:00:03]} 30. Rxg2 {[%clk 0:00:14]}  Bxg2 {[%clk 0:00:04]} 31. Ng5+ {[%clk 0:00:15]}  Ke7 {[%clk 0:00:03]} 32. Bxf5 {[%clk 0:00:15]}  Ra7 {[%clk 0:00:02]} 33. Be4 {[%clk 0:00:10]}  Bxe4 {[%clk 0:00:02]} 34. Nxe4 {[%clk 0:00:11]}  h6 {[%clk 0:00:00]} 35. f5 {[%clk 0:00:11]} 1-0


[Site "https://www.chess.com"]

[Event "Titled Tuesday Blitz June 27 Early 2023"]
[White "Vlassov, Nikolai"]
[Black "Bharath Subramaniyam H"]
[WhiteFideId "4103360"]
[BlackFideId "46634827"]
[WhiteElo "2640"]
[BlackElo "2831"]
[Result "0-1"]
[Round "10"]
[TimeControl "180+2"]
[Date "2023.06.27"]
[WhiteClock "0:00:11"]
[BlackClock "0:01:28"]
[Board "20"]

1. e4 {[%clk 0:03:00]}  c5 {[%clk 0:02:59]} 2. c3 {[%clk 0:03:00]}  e5 {[%clk 0:02:57]} 3. Nf3 {[%clk 0:03:00]}  Nc6 {[%clk 0:02:56]} 4. Bc4 {[%clk 0:03:00]}  Nf6 {[%clk 0:02:52]} 5. d4 {[%clk 0:02:53]}  cxd4 {[%clk 0:02:49]} 6. cxd4 {[%clk 0:02:53]}  exd4 {[%clk 0:02:46]} 7. O-O {[%clk 0:02:49]}  Nxe4 {[%clk 0:02:19]} 8. Re1 {[%clk 0:02:43]}  d5 {[%clk 0:02:15]} 9. Bxd5 {[%clk 0:02:42]}  Qxd5 {[%clk 0:02:16]} 10. Nc3 {[%clk 0:02:43]}  Qd8 {[%clk 0:02:11]} 11. Rxe4+ {[%clk 0:02:33]}  Be7 {[%clk 0:02:11]} 12. Nxd4 {[%clk 0:02:33]}  O-O {[%clk 0:02:06]} 13. Nxc6 {[%clk 0:02:30]}  bxc6 {[%clk 0:02:07]} 14. Bf4 {[%clk 0:02:20]}  Be6 {[%clk 0:02:06]} 15. Qxd8 {[%clk 0:02:10]}  Rfxd8 {[%clk 0:02:07]} 16. Be3 {[%clk 0:02:02]}  Rab8 {[%clk 0:02:02]} 17. h4 {[%clk 0:01:38]}  Rxb2 {[%clk 0:02:00]} 18. Bxa7 {[%clk 0:01:34]}  Rc2 {[%clk 0:01:56]} 19. Na4 {[%clk 0:01:03]}  Bf6 {[%clk 0:01:48]} 20. Rae1 {[%clk 0:00:51]}  Rxa2 {[%clk 0:01:44]} 21. Bb6 {[%clk 0:00:48]}  Rb8 {[%clk 0:01:42]} 22. Bc7 {[%clk 0:00:43]}  Rc8 {[%clk 0:01:42]} 23. Bg3 {[%clk 0:00:37]}  h5 {[%clk 0:01:39]} 24. Nc5 {[%clk 0:00:34]}  Bd5 {[%clk 0:01:37]} 25. Re8+ {[%clk 0:00:33]}  Rxe8 {[%clk 0:01:37]} 26. Rxe8+ {[%clk 0:00:34]}  Kh7 {[%clk 0:01:34]} 27. Nd7 {[%clk 0:00:35]}  Kg6 {[%clk 0:01:28]} 28. Nxf6 {[%clk 0:00:30]}  Kxf6 {[%clk 0:01:28]} 29. Be5+ {[%clk 0:00:28]}  Kg6 {[%clk 0:01:28]} 30. Rd8 {[%clk 0:00:25]}  f6 {[%clk 0:01:26]} 31. Bd4 {[%clk 0:00:21]}  Ra4 {[%clk 0:01:22]} 32. Be3 {[%clk 0:00:19]}  Rxh4 {[%clk 0:01:22]} 33. f3 {[%clk 0:00:20]}  Ra4 {[%clk 0:01:22]} 34. Kf2 {[%clk 0:00:20]}  Ra2+ {[%clk 0:01:22]} 35. Kg3 {[%clk 0:00:20]}  h4+ {[%clk 0:01:21]} 36. Kh2 {[%clk 0:00:19]}  Bxf3 {[%clk 0:01:21]} 37. Rd2 {[%clk 0:00:17]}  Rxd2 {[%clk 0:01:21]} 38. Bxd2 {[%clk 0:00:18]}  Bd5 {[%clk 0:01:22]} 39. Kh3 {[%clk 0:00:18]}  Kf5 {[%clk 0:01:22]} 40. Kxh4 {[%clk 0:00:13]}  Bxg2 {[%clk 0:01:22]} 41. Kg3 {[%clk 0:00:14]}  Bd5 {[%clk 0:01:22]} 42. Bb4 {[%clk 0:00:12]}  g5 {[%clk 0:01:23]} 43. Bc5 {[%clk 0:00:12]}  Kg6 {[%clk 0:01:23]} 44. Kg4 {[%clk 0:00:11]}  f5+ {[%clk 0:01:24]} 45. Kg3 {[%clk 0:00:12]}  f4+ {[%clk 0:01:25]} 46. Kg4 {[%clk 0:00:12]}  Be6+ {[%clk 0:01:25]} 47. Kf3 {[%clk 0:00:13]}  Kf5 {[%clk 0:01:26]} 48. Kf2 {[%clk 0:00:13]}  g4 {[%clk 0:01:27]} 49. Ke2 {[%clk 0:00:13]}  Bd5 {[%clk 0:01:28]} 50. Kf2 {[%clk 0:00:11]}  g3+ {[%clk 0:01:28]} 0-1


[Site "https://www.chess.com"]

[Event "Titled Tuesday Blitz June 27 Early 2023"]
[White "Sethuraman, S.P."]
[Black "Kaidanov, Gregory"]
[WhiteFideId "5021596"]
[BlackFideId "2008564"]
[WhiteElo "2808"]
[BlackElo "2668"]
[Result "1-0"]
[Round "10"]
[TimeControl "180+2"]
[Date "2023.06.27"]
[WhiteClock "0:00:19"]
[BlackClock "0:00:30"]
[Board "22"]

1. e4 {[%clk 0:03:00]}  e5 {[%clk 0:02:59]} 2. Nf3 {[%clk 0:03:00]}  Nc6 {[%clk 0:03:00]} 3. Bc4 {[%clk 0:03:01]}  Bc5 {[%clk 0:02:59]} 4. d3 {[%clk 0:03:01]}  Nf6 {[%clk 0:02:59]} 5. c3 {[%clk 0:03:01]}  a6 {[%clk 0:02:58]} 6. a4 {[%clk 0:03:01]}  d6 {[%clk 0:02:57]} 7. Bg5 {[%clk 0:03:00]}  h6 {[%clk 0:02:56]} 8. Bh4 {[%clk 0:03:00]}  Qe7 {[%clk 0:02:53]} 9. Nbd2 {[%clk 0:02:59]}  Ba7 {[%clk 0:02:53]} 10. O-O {[%clk 0:02:56]}  g5 {[%clk 0:02:44]} 11. Bg3 {[%clk 0:02:56]}  Nh7 {[%clk 0:02:44]} 12. b4 {[%clk 0:02:52]}  h5 {[%clk 0:02:40]} 13. h4 {[%clk 0:02:44]}  g4 {[%clk 0:02:40]} 14. Ne1 {[%clk 0:02:42]}  Nf8 {[%clk 0:02:40]} 15. Nc2 {[%clk 0:02:41]}  Ng6 {[%clk 0:02:39]} 16. Ne3 {[%clk 0:02:41]}  Be6 {[%clk 0:02:27]} 17. b5 {[%clk 0:02:30]}  Nd8 {[%clk 0:02:25]} 18. bxa6 {[%clk 0:02:26]}  bxa6 {[%clk 0:02:24]} 19. d4 {[%clk 0:01:50]}  exd4 {[%clk 0:02:12]} 20. Nf5 {[%clk 0:01:47]}  Bxf5 {[%clk 0:02:08]} 21. exf5 {[%clk 0:01:48]}  Ne5 {[%clk 0:02:08]} 22. Re1 {[%clk 0:01:48]}  O-O {[%clk 0:01:52]} 23. Qc1 {[%clk 0:01:25]}  Qf6 {[%clk 0:01:45]} 24. Ne4 {[%clk 0:01:16]}  Qg7 {[%clk 0:01:35]} 25. Bd5 {[%clk 0:00:57]}  Rb8 {[%clk 0:01:31]} 26. cxd4 {[%clk 0:00:53]}  Bxd4 {[%clk 0:01:30]} 27. Qxc7 {[%clk 0:00:50]}  Ndc6 {[%clk 0:01:20]} 28. Rad1 {[%clk 0:00:40]}  Rbc8 {[%clk 0:01:18]} 29. Qxd6 {[%clk 0:00:40]}  Rfd8 {[%clk 0:01:14]} 30. Bxe5 {[%clk 0:00:25]}  Nxe5 {[%clk 0:00:50]} 31. Qxa6 {[%clk 0:00:24]}  Rxd5 {[%clk 0:00:38]} 32. Nf6+ {[%clk 0:00:19]}  Kh8 {[%clk 0:00:30]} 33. Qxc8+ {[%clk 0:00:19]} 1-0


[Site "https://www.chess.com"]

[Event "Titled Tuesday Blitz June 27 Early 2023"]
[White "Iskusnyh, Sergei"]
[Black "Kilic, Eray"]
[WhiteFideId "4120027"]
[BlackFideId "44517173"]
[WhiteElo "2620"]
[BlackElo "2787"]
[Result "1-0"]
[Round "10"]
[TimeControl "180+2"]
[Date "2023.06.27"]
[WhiteClock "0:00:33"]
[BlackClock "0:01:16"]
[Board "24"]

1. d4 {[%clk 0:03:00]}  Nf6 {[%clk 0:02:59]} 2. c4 {[%clk 0:02:59]}  g6 {[%clk 0:02:59]} 3. g3 {[%clk 0:02:58]}  Bg7 {[%clk 0:03:00]} 4. Bg2 {[%clk 0:02:56]}  O-O {[%clk 0:03:00]} 5. Nc3 {[%clk 0:02:56]}  d6 {[%clk 0:02:58]} 6. Nf3 {[%clk 0:02:55]}  c6 {[%clk 0:02:54]} 7. O-O {[%clk 0:02:51]}  Bf5 {[%clk 0:02:54]} 8. Ng5 {[%clk 0:02:47]}  h6 {[%clk 0:02:52]} 9. e4 {[%clk 0:02:35]}  Bg4 {[%clk 0:02:52]} 10. Nf3 {[%clk 0:02:28]}  Qc8 {[%clk 0:02:51]} 11. Re1 {[%clk 0:02:27]}  Nbd7 {[%clk 0:02:48]} 12. h3 {[%clk 0:02:24]}  Bxf3 {[%clk 0:02:48]} 13. Bxf3 {[%clk 0:02:21]}  e5 {[%clk 0:02:48]} 14. Be3 {[%clk 0:02:17]}  Qc7 {[%clk 0:02:46]} 15. Bg2 {[%clk 0:02:15]}  Rad8 {[%clk 0:02:41]} 16. Qd2 {[%clk 0:02:14]}  Kh7 {[%clk 0:02:40]} 17. Rad1 {[%clk 0:02:13]}  exd4 {[%clk 0:02:38]} 18. Bxd4 {[%clk 0:02:14]}  Nc5 {[%clk 0:02:38]} 19. b3 {[%clk 0:02:08]}  Ne6 {[%clk 0:02:37]} 20. Be3 {[%clk 0:02:08]}  Qa5 {[%clk 0:02:37]} 21. Ne2 {[%clk 0:02:03]}  Qa3 {[%clk 0:02:29]} 22. Qc2 {[%clk 0:02:00]}  Rfe8 {[%clk 0:02:19]} 23. Nc3 {[%clk 0:01:43]}  Nc5 {[%clk 0:02:17]} 24. Bd4 {[%clk 0:01:41]}  Ne6 {[%clk 0:02:14]} 25. Be3 {[%clk 0:01:40]}  Qa5 {[%clk 0:02:11]} 26. f4 {[%clk 0:01:34]}  Ng4 {[%clk 0:02:09]} 27. hxg4 {[%clk 0:01:32]}  Bxc3 {[%clk 0:02:08]} 28. Rf1 {[%clk 0:01:31]}  c5 {[%clk 0:02:04]} 29. Qf2 {[%clk 0:01:27]}  Nd4 {[%clk 0:02:03]} 30. g5 {[%clk 0:01:25]}  h5 {[%clk 0:02:00]} 31. f5 {[%clk 0:01:19]}  Re7 {[%clk 0:01:59]} 32. g4 {[%clk 0:01:17]}  Rde8 {[%clk 0:01:37]} 33. gxh5 {[%clk 0:01:17]}  gxf5 {[%clk 0:01:35]} 34. g6+ {[%clk 0:01:12]}  fxg6 {[%clk 0:01:36]} 35. hxg6+ {[%clk 0:01:13]}  Kg7 {[%clk 0:01:33]} 36. Bxd4+ {[%clk 0:00:57]}  Bxd4 {[%clk 0:01:31]} 37. Rxd4 {[%clk 0:00:57]}  cxd4 {[%clk 0:01:32]} 38. exf5 {[%clk 0:00:57]}  Re2 {[%clk 0:01:28]} 39. Qh4 {[%clk 0:00:41]}  Rh8 {[%clk 0:01:26]} 40. f6+ {[%clk 0:00:41]}  Kxg6 {[%clk 0:01:20]} 41. Qxh8 {[%clk 0:00:40]}  Qd2 {[%clk 0:01:18]} 42. Qg7+ {[%clk 0:00:36]}  Kh5 {[%clk 0:01:16]} 43. Bf3+ {[%clk 0:00:33]} 1-0


[Site "https://www.chess.com"]

[Event "Titled Tuesday Blitz June 27 Early 2023"]
[White "Renjith, Sravan"]
[Black "NicolaiMaxime"]
[WhiteFideId "4306783"]
[WhiteElo "2747"]
[BlackElo "2591"]
[Result "1-0"]
[Round "10"]
[TimeControl "180+2"]
[Date "2023.06.27"]
[WhiteClock "0:01:09"]
[BlackClock "0:00:10"]
[Board "26"]

1. Nf3 {[%clk 0:03:00]}  Nf6 {[%clk 0:02:58]} 2. b3 {[%clk 0:03:00]}  g6 {[%clk 0:02:58]} 3. Bb2 {[%clk 0:03:01]}  Bg7 {[%clk 0:02:59]} 4. e3 {[%clk 0:03:01]}  d6 {[%clk 0:02:57]} 5. Be2 {[%clk 0:02:58]}  e5 {[%clk 0:02:57]} 6. O-O {[%clk 0:02:58]}  O-O {[%clk 0:02:57]} 7. d4 {[%clk 0:02:57]}  e4 {[%clk 0:02:57]} 8. Nfd2 {[%clk 0:02:57]}  d5 {[%clk 0:02:57]} 9. c4 {[%clk 0:02:57]}  c6 {[%clk 0:02:57]} 10. Nc3 {[%clk 0:02:57]}  Be6 {[%clk 0:02:56]} 11. f3 {[%clk 0:02:56]}  exf3 {[%clk 0:02:56]} 12. Bxf3 {[%clk 0:02:57]}  Bf5 {[%clk 0:02:55]} 13. e4 {[%clk 0:02:56]}  Nxe4 {[%clk 0:02:50]} 14. Ndxe4 {[%clk 0:02:57]}  dxe4 {[%clk 0:02:50]} 15. Nxe4 {[%clk 0:02:58]}  Re8 {[%clk 0:02:28]} 16. Ng3 {[%clk 0:02:57]}  Be6 {[%clk 0:02:23]} 17. Qd2 {[%clk 0:02:51]}  Na6 {[%clk 0:02:19]} 18. Rad1 {[%clk 0:02:49]}  Nc7 {[%clk 0:02:18]} 19. Ne4 {[%clk 0:02:42]}  b6 {[%clk 0:02:15]} 20. Ng5 {[%clk 0:02:31]}  Bd7 {[%clk 0:01:42]} 21. Nxf7 {[%clk 0:02:28]}  Qe7 {[%clk 0:01:27]} 22. Ne5 {[%clk 0:02:21]}  Qd6 {[%clk 0:01:07]} 23. Qf2 {[%clk 0:02:02]}  Rad8 {[%clk 0:01:03]} 24. Bxc6 {[%clk 0:01:51]}  Bxc6 {[%clk 0:01:03]} 25. Qf7+ {[%clk 0:01:51]}  Kh8 {[%clk 0:01:03]} 26. Nxc6 {[%clk 0:01:52]}  Qxc6 {[%clk 0:01:01]} 27. Qxg7+ {[%clk 0:01:52]}  Kxg7 {[%clk 0:00:57]} 28. d5+ {[%clk 0:01:53]}  Kg8 {[%clk 0:00:56]} 29. dxc6 {[%clk 0:01:53]}  Ne6 {[%clk 0:00:29]} 30. Rfe1 {[%clk 0:01:34]}  Kf7 {[%clk 0:00:24]} 31. Rd5 {[%clk 0:01:25]}  Nf4 {[%clk 0:00:18]} 32. Rf1 {[%clk 0:01:23]}  g5 {[%clk 0:00:15]} 33. Rxg5 {[%clk 0:01:16]}  Re2 {[%clk 0:00:15]} 34. Bc1 {[%clk 0:01:14]}  h6 {[%clk 0:00:11]} 35. Rf5+ {[%clk 0:01:12]}  Ke6 {[%clk 0:00:11]} 36. R5xf4 {[%clk 0:01:13]}  Rg8 {[%clk 0:00:12]} 37. R4f2 {[%clk 0:01:13]}  Re4 {[%clk 0:00:11]} 38. Bd2 {[%clk 0:01:09]}  Kd6 {[%clk 0:00:10]} 39. Rf6+ {[%clk 0:01:09]}  Kc5 {[%clk 0:00:10]} 40. R1f5+ {[%clk 0:01:08]}  Kd4 {[%clk 0:00:10]} 41. Rd5# {[%clk 0:01:09]} 1-0


[Site "https://www.chess.com"]

[Event "Titled Tuesday Blitz June 27 Early 2023"]
[White "Preotu, Razvan"]
[Black "Berezin, Viktor"]
[WhiteFideId "2613280"]
[BlackFideId "14107872"]
[WhiteElo "2719"]
[BlackElo "2559"]
[Result "1-0"]
[Round "10"]
[TimeControl "180+2"]
[Date "2023.06.27"]
[WhiteClock "0:00:14"]
[BlackClock "0:00:21"]
[Board "29"]

1. e4 {[%clk 0:03:00]}  g6 {[%clk 0:02:54]} 2. d4 {[%clk 0:03:00]}  Bg7 {[%clk 0:02:52]} 3. Nc3 {[%clk 0:03:00]}  d6 {[%clk 0:02:53]} 4. Be3 {[%clk 0:03:00]}  c6 {[%clk 0:02:51]} 5. f4 {[%clk 0:02:40]}  b5 {[%clk 0:02:47]} 6. Bd3 {[%clk 0:02:38]}  b4 {[%clk 0:02:44]} 7. Nce2 {[%clk 0:02:38]}  Nf6 {[%clk 0:02:44]} 8. Nf3 {[%clk 0:02:35]}  a5 {[%clk 0:02:40]} 9. O-O {[%clk 0:02:02]}  Ba6 {[%clk 0:02:37]} 10. c4 {[%clk 0:01:47]}  d5 {[%clk 0:02:00]} 11. cxd5 {[%clk 0:01:39]}  cxd5 {[%clk 0:01:54]} 12. e5 {[%clk 0:01:40]}  Ne4 {[%clk 0:01:44]} 13. Ng3 {[%clk 0:01:30]}  Nxg3 {[%clk 0:01:40]} 14. hxg3 {[%clk 0:01:31]}  e6 {[%clk 0:01:41]} 15. g4 {[%clk 0:01:13]}  h5 {[%clk 0:01:39]} 16. Ng5 {[%clk 0:01:01]}  Bxd3 {[%clk 0:01:36]} 17. Qxd3 {[%clk 0:01:02]}  hxg4 {[%clk 0:01:36]} 18. Nxe6 {[%clk 0:01:03]}  Qh4 {[%clk 0:01:16]} 19. Qb5+ {[%clk 0:00:37]}  Nd7 {[%clk 0:00:59]} 20. Nxg7+ {[%clk 0:00:22]}  Ke7 {[%clk 0:00:38]} 21. Rfc1 {[%clk 0:00:18]}  g3 {[%clk 0:00:36]} 22. Kf1 {[%clk 0:00:18]}  Qh1+ {[%clk 0:00:36]} 23. Bg1 {[%clk 0:00:18]}  Rac8 {[%clk 0:00:33]} 24. Qxd5 {[%clk 0:00:14]}  Rhd8 {[%clk 0:00:21]} 25. Qd6# {[%clk 0:00:14]} 1-0


[Site "https://www.chess.com"]

[Event "Titled Tuesday Blitz June 27 Early 2023"]
[White "Molina, Roberto Junio Brito"]
[Black "Florescu, Codrut-Constantin"]
[WhiteFideId "2109450"]
[BlackFideId "1202200"]
[WhiteElo "2828"]
[BlackElo "2651"]
[Result "1-0"]
[Round "10"]
[TimeControl "180+2"]
[Date "2023.06.27"]
[WhiteClock "0:00:48"]
[BlackClock "0:00:13"]
[Board "35"]

1. e4 {[%clk 0:02:58]}  c5 {[%clk 0:03:00]} 2. Nf3 {[%clk 0:02:57]}  e6 {[%clk 0:03:00]} 3. d4 {[%clk 0:02:56]}  cxd4 {[%clk 0:03:01]} 4. Nxd4 {[%clk 0:02:56]}  Nf6 {[%clk 0:03:01]} 5. Nc3 {[%clk 0:02:55]}  d6 {[%clk 0:03:02]} 6. Be3 {[%clk 0:02:48]}  a6 {[%clk 0:03:03]} 7. f3 {[%clk 0:02:48]}  b5 {[%clk 0:03:02]} 8. Qd2 {[%clk 0:02:48]}  h5 {[%clk 0:03:02]} 9. a3 {[%clk 0:02:47]}  Bb7 {[%clk 0:03:02]} 10. O-O-O {[%clk 0:02:46]}  Nbd7 {[%clk 0:03:01]} 11. Kb1 {[%clk 0:02:46]}  Rc8 {[%clk 0:03:01]} 12. Nb3 {[%clk 0:02:40]}  Be7 {[%clk 0:02:58]} 13. h3 {[%clk 0:02:37]}  h4 {[%clk 0:02:57]} 14. Be2 {[%clk 0:02:35]}  Ne5 {[%clk 0:02:55]} 15. Bd4 {[%clk 0:02:34]}  Qc7 {[%clk 0:02:52]} 16. Qe3 {[%clk 0:02:29]}  Nfd7 {[%clk 0:02:30]} 17. Qf2 {[%clk 0:02:25]}  Ba8 {[%clk 0:02:11]} 18. f4 {[%clk 0:02:20]}  Nc4 {[%clk 0:02:10]} 19. Bxg7 {[%clk 0:02:20]}  Rg8 {[%clk 0:02:08]} 20. Bd4 {[%clk 0:02:20]}  e5 {[%clk 0:01:58]} 21. fxe5 {[%clk 0:02:19]}  dxe5 {[%clk 0:01:57]} 22. Rhf1 {[%clk 0:02:15]}  f6 {[%clk 0:01:45]} 23. Bh5+ {[%clk 0:02:01]}  Kd8 {[%clk 0:01:38]} 24. Bf7 {[%clk 0:01:56]}  Rf8 {[%clk 0:01:26]} 25. Bxc4 {[%clk 0:01:54]}  exd4 {[%clk 0:01:23]} 26. Be6 {[%clk 0:01:44]}  dxc3 {[%clk 0:00:47]} 27. Bxd7 {[%clk 0:01:36]}  Qxd7 {[%clk 0:00:48]} 28. Rxd7+ {[%clk 0:01:35]}  Kxd7 {[%clk 0:00:48]} 29. Rd1+ {[%clk 0:01:21]}  Ke8 {[%clk 0:00:45]} 30. Qxh4 {[%clk 0:01:18]}  cxb2 {[%clk 0:00:34]} 31. Qh5+ {[%clk 0:01:14]}  Rf7 {[%clk 0:00:34]} 32. e5 {[%clk 0:00:54]}  Be4 {[%clk 0:00:19]} 33. e6 {[%clk 0:00:49]}  Bxc2+ {[%clk 0:00:13]} 34. Kxb2 {[%clk 0:00:48]} 1-0


[Site "https://www.chess.com"]